fUST/lending_fUST_20240804
["ID","MTS","AMOUNT","RATE_DAILY","PERIOD"]
[334051512,1722709843975,-1043.67069,0.00013699,2]
[334051513,1722709843984,-230.79611398,0.000137,2]
[334051514,1722709843994,-150.112233,0.000137,2]
[334051515,1722709844005,-816.90966401,0.00013804,2]
[334051516,1722709844015,-500.0,0.0001386,2]
[334051517,1722709844025,-500.0,0.0001386,2]
[334051518,1722709844034,-4934.73023222,0.00013861,2]
[334051519,1722709844053,-298.413062,0.00013861,2]
[334051520,1722709844296,-500.0,0.00013698,2]
[334051521,1722709844391,-500.0,0.00013698,2]
[334051522,1722709844401,-2155.85,0.00013861,2]
[334051523,1722709844412,-872.43,0.00013861,2]
[334051651,1722709846721,-7377.34533468,0.00013861,2]
[334051653,1722709846731,-423.31755793,0.00013869,2]
[334051655,1722709846742,-500.0,0.00013869,2]
[334051657,1722709846752,-500.0,0.00013869,2]
[334051659,1722709846761,-500.0,0.00013869,2]
[334051661,1722709846773,-366.34372886,0.00013869,2]
[334051663,1722709846783,-500.0,0.00013869,2]
[334051665,1722709846792,-409.62580055,0.00013869,2]
[334051667,1722709846801,-500.0,0.00013869,2]
[334051669,1722709846811,-500.0,0.00013869,2]
[334051671,1722709846820,-505.15928481,0.00013869,2]
[334051673,1722709846830,-500.0,0.00013869,2]
[334051675,1722709846840,-591.19884924,0.00013869,2]
[334051677,1722709846849,-500.0,0.00013869,2]
[334051679,1722709846860,-500.0,0.00013869,2]
[334051681,1722709846870,-500.0,0.00013869,2]
[334051683,1722709846880,-318.25344326,0.00013869,2]
[334051685,1722709846891,-17374.79210455,0.00013871,2]
[334051687,1722709846900,-2000.0,0.00013872,2]
[334051689,1722709846910,-15638.7686289,0.0001396,2]
[334051690,1722709846920,-500.0,0.00013961,2]
[334051692,1722709846933,-15638.7686289,0.00013962,2]
[334051693,1722709846943,-500.0,0.00013971,2]
[334051695,1722709846953,-500.0,0.00013972,2]
[334051697,1722709846963,-500.0,0.00013972,2]
[334051698,1722709846973,-500.0,0.00013972,2]
[334051701,1722709846982,-500.0,0.00013972,2]
[334051703,1722709846991,-500.0,0.00013972,2]
[334051706,1722709847000,-500.0,0.00013972,2]
[334051708,1722709847012,-500.0,0.00013972,2]
[334051710,1722709847023,-500.0,0.00013972,2]
[334051712,1722709847032,-500.0,0.00013972,2]
[334051715,1722709847042,-500.0,0.00013972,2]
[334051717,1722709847052,-602.05,0.00013972,2]
[334051720,1722709847061,-500.0,0.00013972,2]
[334051722,1722709847071,-500.0,0.00013972,2]
[334051724,1722709847081,-500.0,0.00013972,2]
[334051725,1722709847091,-500.0,0.00013972,2]
[334051726,1722709847102,-500.0,0.00013972,2]
[334051727,1722709847112,-500.0,0.00013972,2]
[334051728,1722709847121,-500.0,0.00013972,2]
[334051729,1722709847131,-500.0,0.00013972,2]
[334051730,1722709847140,-500.0,0.00013972,2]
[334051731,1722709847150,-500.0,0.00013972,2]
[334051732,1722709847159,-538.9,0.00013972,2]
[334051733,1722709847168,-500.0,0.00013972,2]
[334051734,1722709847177,-696.53,0.00013972,2]
[334051735,1722709847187,-500.0,0.00013972,2]
[334051736,1722709847196,-175.22417968,0.00013972,2]
[334051737,1722709847206,-500.0,0.00013972,2]
[334051738,1722709847215,-500.0,0.00013972,2]
[334051739,1722709847224,-500.0,0.00013972,2]
[334051740,1722709847234,-500.0,0.00013972,2]
[334051741,1722709847243,-500.0,0.00013972,2]
[334051742,1722709847252,-500.0,0.00013972,2]
[334051743,1722709847262,-520.19917064,0.00013972,2]
[334051744,1722709847272,-500.0,0.00013972,2]
[334051745,1722709847281,-500.0,0.00013972,2]
[334051746,1722709847291,-636.41,0.00013972,2]
[334051747,1722709847300,-500.0,0.00013972,2]
[334051748,1722709847309,-443.27345123,0.00013972,2]
[334051749,1722709847319,-500.0,0.00013972,2]
[334051750,1722709847328,-500.0,0.00013972,2]
[334051751,1722709847337,-500.0,0.00013972,2]
[334051752,1722709847346,-500.0,0.00013972,2]
[334051753,1722709847356,-491.49400525,0.00013972,2]
[334051754,1722709847365,-500.0,0.00013972,2]
[334051755,1722709847374,-500.0,0.00013972,2]
[334051756,1722709847383,-500.0,0.00013972,2]
[334051757,1722709847393,-500.0,0.00013972,2]
[334051758,1722709847403,-500.0,0.00013972,2]
[334051759,1722709847412,-500.0,0.00013972,2]
[334051760,1722709847422,-500.0,0.00013972,2]
[334051761,1722709847431,-500.0,0.00013972,2]
[334051762,1722709847440,-500.0,0.00013972,2]
[334051763,1722709847450,-173.22283092,0.00013972,2]
[334051764,1722709847459,-500.0,0.00013972,2]
[334051765,1722709847469,-732.37,0.00013972,2]
[334051766,1722709847478,-500.0,0.00013972,2]
[334051767,1722709847488,-500.0,0.00013972,2]
[334051768,1722709847498,-500.0,0.00013972,2]
[334051769,1722709847507,-500.0,0.00013972,2]
[334051770,1722709847516,-500.0,0.00013972,2]
[334051771,1722709847526,-500.0,0.00013972,2]
[334051772,1722709847537,-500.0,0.00013972,2]
[334051773,1722709847546,-500.0,0.00013972,2]
[334051774,1722709847555,-500.0,0.00013972,2]
[334051775,1722709847564,-500.0,0.00013972,2]
[334051776,1722709847574,-500.0,0.00013972,2]
[334051777,1722709847583,-500.0,0.00013972,2]
[334051778,1722709847592,-500.0,0.00013972,2]
[334051779,1722709847602,-611.83,0.00013972,2]
[334051780,1722709847615,-767.85,0.00013972,2]
[334051781,1722709847625,-500.0,0.00013972,2]
[334051782,1722709847634,-335.65,0.00013972,2]
[334051783,1722709847643,-500.0,0.00013972,2]
[334051784,1722709847652,-885.12,0.00013972,2]
[334051785,1722709847660,-500.0,0.00013972,2]
[334051786,1722709847669,-515.0415024,0.00013972,2]
[334051787,1722709847679,-500.0,0.00013972,2]
[334051788,1722709847689,-500.0,0.00013972,2]
[334051789,1722709847698,-500.0,0.00013972,2]
[334051790,1722709847707,-500.0,0.00013972,2]
[334051791,1722709847717,-500.0,0.00013972,2]
[334051792,1722709847726,-500.0,0.00013972,2]
[334051793,1722709847735,-510.21,0.00013972,2]
[334051794,1722709847745,-500.0,0.00013972,2]
[334051795,1722709847754,-804.73,0.00013972,2]
[334051796,1722709847764,-500.0,0.00013972,2]
[334051797,1722709847773,-500.0,0.00013972,2]
[334051798,1722709847783,-500.0,0.00013972,2]
[334051799,1722709847793,-500.0,0.00013972,2]
[334051800,1722709847802,-500.0,0.00013972,2]
[334051801,1722709847812,-500.0,0.00013972,2]
[334051802,1722709847822,-1944.13,0.00013972,2]
[334051803,1722709847832,-500.0,0.00013972,2]
[334051804,1722709847842,-500.0,0.00013972,2]
[334051805,1722709847851,-643.47,0.00013972,2]
[334051806,1722709847870,-500.0,0.00013972,2]
[334051807,1722709847879,-500.0,0.00013972,2]
[334051808,1722709847889,-2343.64,0.00013972,2]
[334051809,1722709847898,-500.0,0.00013972,2]
[334051810,1722709847908,-2447.36,0.00013972,2]
[334051811,1722709847918,-500.0,0.00013972,2]
[334051812,1722709847929,-500.0,0.00013972,2]
[334051813,1722709847940,-500.0,0.00013972,2]
[334051814,1722709847950,-500.0,0.00013972,2]
[334051815,1722709847959,-500.0,0.00013972,2]
[334051816,1722709847969,-651.03,0.00013972,2]
[334051817,1722709848064,-1316.73,0.00013972,2]
[334051818,1722709848075,-500.0,0.00013972,2]
[334051819,1722709848084,-584.92854329,0.00013972,2]
[334051820,1722709848093,-500.0,0.00013972,2]
[334051821,1722709848103,-500.0,0.00013972,2]
[334051822,1722709848120,-500.0,0.00013972,2]
[334051823,1722709848130,-500.0,0.00013972,2]
[334051824,1722709848140,-500.0,0.00013972,2]
[334051825,1722709848149,-1492.53,0.00013972,2]
[334051826,1722709848159,-500.0,0.00013972,2]
[334051827,1722709848168,-816.90966401,0.00014009,2]
[334051828,1722709848178,-4554.44211047,0.0001402,2]
[334051829,1722709848188,-351.91565771,0.00014075,2]
[334051830,1722709848198,-500.0,0.00014093,2]
[334051831,1722709848207,-816.90966401,0.00014215,2]
[334051832,1722709848218,-2086.26606955,0.00014226,2]
[334051835,1722709848557,-201.7333977,0.00014226,2]
[334051836,1722709848569,-300.78721,0.00014226,2]
[334051837,1722709848630,-35.38060955,0.00014226,2]
[334051884,1722710471883,500.0,0.00027,120]
[334051888,1722710521118,500.0,0.00027,120]
[334051896,1722710739316,-760.72918014,9.899e-05,2]
[334051897,1722710792525,500.0,0.00027,120]
[334051898,1722710825995,1259.0,0.00025,60]
[334051899,1722710836307,20000.0,0.00027,120]
[334051902,1722710922760,2200.38416012,0.00027,120]
[334051903,1722710954099,-812.02625829,9.702e-05,2]
[334051904,1722710954121,-156.25691533,9.999e-05,2]
[334051905,1722710954142,-156.95333335,9.999e-05,2]
[334051906,1722710954164,-727.46839186,9.999e-05,2]
[334051907,1722710954185,-532.07679789,9.999e-05,2]
[334051908,1722710954207,-180.46429061,9.999e-05,2]
[334051909,1722710954228,-599.65130289,9.999e-05,2]
[334051910,1722710954252,-150.68721593,9.999e-05,2]
[334051911,1722710955119,-543.38135873,9.999e-05,2]
[334051912,1722710955141,-165.3845089,9.999e-05,2]
[334051913,1722710955163,-849.3304683,9.999e-05,2]
[334051914,1722710955184,-334.01740455,9.999e-05,2]
[334051915,1722710955205,-412.91003871,0.0001,2]
[334051916,1722710958245,779.59941017,9.999e-05,2]
[334051917,1722710960923,273.37336231,9.9e-05,2]
[334051918,1722710969554,273.37336231,9.9e-05,2]
[334051919,1722710977364,273.37336231,9.9e-05,2]
[334051920,1722710986057,273.37336231,9.9e-05,2]
[334051921,1722710994580,15.15948288,9.9e-05,2]
[334051997,1722711033904,-258.21387943,9.9e-05,2]
[334051998,1722711033913,-822.26492701,9.9e-05,2]
[334051999,1722711033923,-46.78548411,9.9e-05,2]
[334052001,1722711033936,-357.93954504,9.9e-05,2]
[334052003,1722711033946,-218.345205,9.9e-05,2]
[334052004,1722711033955,-426.89711274,9.999e-05,2]
[334052005,1722711033964,-412.91003871,0.00012,2]
[334052006,1722711033974,-842.1245298,0.00012,2]
[334052007,1722711033984,-779.59941017,0.00012,2]
[334052008,1722711033993,-180.40131411,0.00012,2]
[334052009,1722711034002,-2251.56603467,0.00012118,2]
[334052010,1722711034030,-414.88650261,9.999e-05,2]
[334052011,1722711034039,-1090.96349739,0.00012118,2]
[334052014,1722711038506,-273.37336231,9.9e-05,2]
[334052015,1722711038518,-440.0960088,9.999e-05,2]
[334052016,1722711038530,-21557.47046794,0.00012118,2]
[334052017,1722711038540,-195.643911,0.00012395,2]
[334052018,1722711038549,-2121.22422362,0.000129,2]
[334052019,1722711038559,-167.507494,0.00012986,2]
[334052020,1722711038571,-195.643911,0.00013041,2]
[334052021,1722711038581,-1257.89218921,0.00013588,4]
[334052022,1722711038593,-415.13397594,0.00013598,2]
[334052023,1722711038605,-26126.7710017,0.00013688,2]
[334052024,1722711038616,-13063.3855009,0.00013689,2]
[334052025,1722711038628,-894.58,0.00013697,2]
[334052026,1722711038638,-500.44866568,0.00013698,2]
[334052027,1722711038650,-500.0,0.00013698,2]
[334052028,1722711038662,-326.03432267,0.00013698,2]
[334052029,1722711038675,-500.0,0.00013698,2]
[334052030,1722711038688,-512.33435201,0.00013698,2]
[334052031,1722711038699,-504.10445539,0.00013698,2]
[334052032,1722711038709,-500.0,0.00013698,2]
[334052033,1722711038719,-500.0,0.00013698,2]
[334052034,1722711038729,-500.0,0.00013698,2]
[334052035,1722711038739,-500.0,0.00013698,2]
[334052036,1722711038751,-504.23758031,0.00013698,2]
[334052037,1722711038762,-500.0,0.00013698,2]
[334052038,1722711038774,-507.63589301,0.00013698,2]
[334052039,1722711038786,-331.83517555,0.00013698,2]
[334052040,1722711038795,-500.0,0.00013698,2]
[334052041,1722711038804,-500.0,0.00013698,2]
[334052042,1722711038816,-445.50083456,0.00013698,2]
[334052043,1722711038828,-500.0,0.00013698,2]
[334052044,1722711038838,-500.0,0.00013698,2]
[334052045,1722711038850,-500.0,0.00013698,2]
[334052046,1722711038860,-500.0,0.00013698,2]
[334052047,1722711038870,-257.52074105,0.00013698,2]
[334052048,1722711038880,-500.0,0.00013698,2]
[334052049,1722711038889,-500.0,0.00013698,2]
[334052050,1722711038900,-500.0,0.00013698,2]
[334052051,1722711038911,-500.0,0.00013698,2]
[334052052,1722711038922,-500.0,0.00013698,2]
[334052053,1722711038933,-500.0,0.00013698,2]
[334052054,1722711038944,-500.0,0.00013698,2]
[334052055,1722711038955,-500.0,0.00013698,2]
[334052056,1722711038966,-626.88022661,0.00013698,2]
[334052057,1722711038976,-500.0,0.00013698,2]
[334052058,1722711038988,-500.0,0.00013698,2]
[334052059,1722711038998,-500.0,0.00013698,2]
[334052060,1722711039008,-500.0,0.00013698,2]
[334052061,1722711039019,-500.0,0.00013698,2]
[334052062,1722711039030,-500.0,0.00013698,2]
[334052063,1722711039040,-500.0,0.00013698,2]
[334052064,1722711039051,-500.0,0.00013698,2]
[334052065,1722711039063,-500.0,0.00013698,2]
[334052066,1722711039074,-500.0,0.00013698,2]
[334052068,1722711039085,-500.0,0.00013698,2]
[334052070,1722711039096,-500.0,0.00013698,2]
[334052072,1722711039107,-500.0,0.00013698,2]
[334052074,1722711039117,-500.0,0.00013698,2]
[334052076,1722711039128,-500.0,0.00013698,2]
[334052078,1722711039139,-500.0,0.00013698,2]
[334052080,1722711039150,-500.0,0.00013698,2]
[334052082,1722711039161,-500.0,0.00013698,2]
[334052084,1722711039172,-483.25628062,0.00013698,2]
[334052086,1722711039182,-500.0,0.00013698,2]
[334052088,1722711039196,-500.0,0.00013698,2]
[334052091,1722711039207,-500.0,0.00013698,2]
[334052093,1722711039217,-500.0,0.00013698,2]
[334052095,1722711039228,-500.0,0.00013698,2]
[334052097,1722711039239,-556.49,0.00013698,2]
[334052099,1722711039250,-500.0,0.00013698,2]
[334052101,1722711039261,-500.0,0.00013698,2]
[334052103,1722711039276,-500.0,0.00013698,2]
[334052105,1722711039287,-723.36,0.00013698,2]
[334052107,1722711039299,-500.0,0.00013698,2]
[334052109,1722711039311,-500.0,0.00013698,2]
[334052112,1722711039322,-500.0,0.00013698,2]
[334052114,1722711039333,-500.0,0.00013698,2]
[334052116,1722711039344,-500.0,0.00013698,2]
[334052118,1722711039355,-500.0,0.00013698,2]
[334052120,1722711039366,-500.0,0.00013698,2]
[334052122,1722711039378,-500.0,0.00013698,2]
[334052124,1722711039388,-500.0,0.00013698,2]
[334052126,1722711039399,-500.0,0.00013698,2]
[334052128,1722711039410,-500.0,0.00013698,2]
[334052131,1722711039421,-500.0,0.00013698,2]
[334052133,1722711039433,-500.0,0.00013698,2]
[334052135,1722711039450,-500.0,0.00013698,2]
[334052137,1722711039463,-500.0,0.00013698,2]
[334052148,1722711039601,-500.0,0.00013698,2]
[334052149,1722711039614,-500.0,0.00013698,2]
[334052150,1722711039623,-500.0,0.00013698,2]
[334052151,1722711039632,-500.0,0.00013698,2]
[334052152,1722711039642,-500.0,0.00013698,2]
[334052153,1722711039651,-500.0,0.00013698,2]
[334052154,1722711039660,-645.87,0.00013698,2]
[334052155,1722711039670,-500.0,0.00013698,2]
[334052156,1722711039679,-500.0,0.00013698,2]
[334052157,1722711039691,-500.0,0.00013698,2]
[334052158,1722711039700,-500.0,0.00013698,2]
[334052159,1722711039709,-500.0,0.00013698,2]
[334052160,1722711039718,-500.0,0.00013698,2]
[334052161,1722711039727,-501.96834562,0.00013698,2]
[334052162,1722711039736,-500.0,0.00013698,2]
[334052163,1722711039746,-500.0,0.00013698,2]
[334052164,1722711039755,-500.0,0.00013698,2]
[334052165,1722711039765,-500.0,0.00013698,2]
[334052166,1722711039774,-500.0,0.00013698,2]
[334052167,1722711039784,-506.96,0.00013698,2]
[334052168,1722711039793,-500.0,0.00013698,2]
[334052169,1722711039803,-500.0,0.00013698,2]
[334052170,1722711039812,-500.0,0.00013698,2]
[334052171,1722711039821,-500.0,0.00013698,2]
[334052172,1722711039831,-500.0,0.00013698,2]
[334052173,1722711039840,-500.0,0.00013698,2]
[334052174,1722711039849,-500.0,0.00013698,2]
[334052175,1722711039859,-500.0,0.00013698,2]
[334052176,1722711039868,-500.0,0.00013698,2]
[334052177,1722711039877,-500.0,0.00013698,2]
[334052178,1722711039886,-554.22845092,0.00013698,2]
[334052180,1722711039896,-500.0,0.00013698,2]
[334052182,1722711039905,-500.0,0.00013698,2]
[334052184,1722711039915,-500.0,0.00013698,2]
[334052186,1722711039925,-500.0,0.00013698,2]
[334052188,1722711039934,-500.0,0.00013698,2]
[334052189,1722711039946,-500.0,0.00013698,2]
[334052190,1722711039956,-500.0,0.00013698,2]
[334052191,1722711039965,-894.58,0.00013698,2]
[334052192,1722711039975,-894.58,0.00013698,2]
[334052193,1722711039984,-500.0,0.00013698,2]
[334052195,1722711039993,-1490.54,0.00013698,2]
[334052197,1722711040002,-500.0,0.00013698,2]
[334052198,1722711040011,-500.0,0.00013698,2]
[334052199,1722711040021,-500.0,0.00013698,2]
[334052200,1722711040030,-500.0,0.00013698,2]
[334052201,1722711040040,-500.0,0.00013698,2]
[334052202,1722711040050,-500.0,0.00013698,2]
[334052203,1722711040060,-500.0,0.00013698,2]
[334052204,1722711040069,-500.0,0.00013698,2]
[334052205,1722711040079,-500.0,0.00013698,2]
[334052207,1722711040088,-500.0,0.00013698,2]
[334052209,1722711040097,-500.0,0.00013698,2]
[334052211,1722711040107,-500.0,0.00013698,2]
[334052212,1722711040116,-822.6,0.00013698,2]
[334052213,1722711040126,-500.0,0.00013698,2]
[334052214,1722711040135,-362.02501254,0.00013698,2]
[334052215,1722711040145,-500.0,0.00013698,2]
[334052216,1722711040154,-500.0,0.00013698,2]
[334052217,1722711040164,-500.0,0.00013698,2]
[334052218,1722711040174,-500.0,0.00013698,2]
[334052219,1722711040183,-500.0,0.00013698,2]
[334052221,1722711040195,-665.23,0.00013698,2]
[334052223,1722711040205,-500.0,0.00013698,2]
[334052224,1722711040214,-500.0,0.00013698,2]
[334052226,1722711040223,-500.0,0.00013698,2]
[334052227,1722711040233,-500.0,0.00013698,2]
[334052228,1722711040243,-500.0,0.00013698,2]
[334052229,1722711040252,-500.0,0.00013698,2]
[334052230,1722711040262,-502.07387416,0.00013698,2]
[334052231,1722711040276,-500.0,0.00013698,2]
[334052232,1722711040285,-500.0,0.00013698,2]
[334052233,1722711040294,-500.0,0.00013698,2]
[334052234,1722711040305,-500.0,0.00013698,2]
[334052235,1722711040315,-500.0,0.00013698,2]
[334052237,1722711040325,-500.0,0.00013698,2]
[334052239,1722711040335,-504.89101976,0.00013698,2]
[334052241,1722711040348,-500.0,0.00013698,2]
[334052243,1722711040358,-500.0,0.00013698,2]
[334052245,1722711040368,-500.0,0.00013698,2]
[334052246,1722711040377,-500.0,0.00013698,2]
[334052247,1722711040387,-500.0,0.00013698,2]
[334052248,1722711040396,-500.0,0.00013698,2]
[334052249,1722711040406,-745.53,0.00013698,2]
[334052250,1722711040415,-500.0,0.00013698,2]
[334052251,1722711040425,-500.0,0.00013698,2]
[334052252,1722711040434,-1004.66,0.00013698,2]
[334052253,1722711040446,-769.14,0.00013698,2]
[334052254,1722711040456,-504.81039406,0.00013698,2]
[334052255,1722711040465,-500.0,0.00013698,2]
[334052256,1722711040475,-500.0,0.00013698,2]
[334052257,1722711040485,-500.0,0.00013698,2]
[334052258,1722711040494,-500.0,0.00013698,2]
[334052259,1722711040504,-500.0,0.00013698,2]
[334052260,1722711040513,-500.0,0.00013698,2]
[334052261,1722711040523,-500.0,0.00013698,2]
[334052262,1722711040532,-500.0,0.00013698,2]
[334052263,1722711040541,-500.0,0.00013698,2]
[334052264,1722711040551,-500.0,0.00013698,2]
[334052265,1722711040559,-500.0,0.00013698,2]
[334052266,1722711040568,-500.0,0.00013698,2]
[334052267,1722711040578,-500.0,0.00013698,2]
[334052268,1722711040587,-500.0,0.00013698,2]
[334052269,1722711040596,-500.0,0.00013698,2]
[334052270,1722711040605,-500.0,0.00013698,2]
[334052271,1722711040614,-500.0,0.00013698,2]
[334052272,1722711040624,-500.0,0.00013698,2]
[334052273,1722711040633,-500.0,0.00013698,2]
[334052274,1722711040642,-354.36871326,0.00013698,2]
[334052275,1722711040651,-500.0,0.00013698,2]
[334052276,1722711040660,-500.0,0.00013698,2]
[334052277,1722711040669,-500.0,0.00013698,2]
[334052278,1722711040678,-500.0,0.00013698,2]
[334052279,1722711040690,-500.0,0.00013698,2]
[334052280,1722711040700,-500.0,0.00013698,2]
[334052281,1722711040709,-500.0,0.00013698,2]
[334052282,1722711040719,-500.0,0.00013698,2]
[334052283,1722711040729,-500.0,0.00013698,2]
[334052284,1722711040738,-500.0,0.00013698,2]
[334052285,1722711040747,-2397.89,0.00013698,2]
[334052286,1722711040757,-500.0,0.00013698,2]
[334052287,1722711040767,-500.0,0.00013698,2]
[334052288,1722711040777,-500.0,0.00013698,2]
[334052289,1722711040787,-799.55,0.00013698,2]
[334052290,1722711040795,-500.0,0.00013698,2]
[334052291,1722711040805,-500.0,0.00013698,2]
[334052292,1722711040815,-530.19,0.00013698,2]
[334052293,1722711040824,-371.06766861,0.00013698,2]
[334052294,1722711040833,-2060.27,0.00013698,2]
[334052295,1722711040842,-500.0,0.00013698,2]
[334052296,1722711040852,-500.0,0.00013698,2]
[334052297,1722711040863,-500.0,0.00013698,2]
[334052298,1722711040872,-508.22712239,0.00013698,2]
[334052299,1722711040883,-500.0,0.00013698,2]
[334052300,1722711040892,-500.0,0.00013698,2]
[334052301,1722711040901,-500.0,0.00013698,2]
[334052302,1722711040911,-500.0,0.00013698,2]
[334052303,1722711040920,-500.0,0.00013698,2]
[334052304,1722711040931,-500.0,0.00013698,2]
[334052305,1722711040942,-2600.87,0.00013698,2]
[334052306,1722711040952,-500.0,0.00013698,2]
[334052307,1722711040962,-500.0,0.00013698,2]
[334052308,1722711040972,-500.0,0.00013698,2]
[334052309,1722711040981,-695.02,0.00013698,2]
[334052310,1722711040991,-1465.56,0.00013698,2]
[334052311,1722711041001,-500.48732358,0.00013698,2]
[334052312,1722711041011,-506.34448599,0.00013698,2]
[334052313,1722711041020,-500.0,0.00013698,2]
[334052314,1722711041030,-500.0,0.00013698,2]
[334052315,1722711041040,-495.70446836,0.00013698,2]
[334052316,1722711041050,-500.0,0.00013698,2]
[334052317,1722711041060,-500.0,0.00013698,2]
[334052318,1722711041070,-505.10663485,0.00013698,2]
[334052319,1722711041080,-500.0,0.00013698,2]
[334052320,1722711041089,-500.0,0.00013698,2]
[334052321,1722711041099,-500.0,0.00013698,2]
[334052322,1722711041108,-502.21731606,0.00013698,2]
[334052323,1722711041118,-500.0,0.00013698,2]
[334052324,1722711041127,-500.0,0.00013698,2]
[334052325,1722711041136,-500.0,0.00013698,2]
[334052326,1722711041146,-521.7,0.00013698,2]
[334052327,1722711041155,-503.54419415,0.00013698,2]
[334052328,1722711041164,-500.0,0.00013698,2]
[334052329,1722711041173,-686.4,0.00013698,2]
[334052330,1722711041183,-500.0,0.00013698,2]
[334052331,1722711041196,-500.0,0.00013698,2]
[334052332,1722711041205,-1821.67853,0.00013699,2]
[334052333,1722711041215,-3000.0,0.00013699,2]
[334052334,1722711041224,-56033.1821261,0.00013699,2]
[334052335,1722711041234,-188.0102848,0.00013699,2]
[334052336,1722711041243,-230.79611398,0.000137,2]
[334052337,1722711041253,-150.112233,0.000137,2]
[334052338,1722711041262,-4554.44211047,0.00013705,2]
[334052339,1722711041278,-351.91565772,0.00013753,2]
[334052340,1722711041287,-415.13397591,0.00013804,2]
[334052341,1722711041296,-1780.77,0.00013872,2]
[334052342,1722711041306,-500.0,0.00013959,2]
[334052343,1722711041317,-500.0,0.00013959,2]
[334052344,1722711041327,-500.0,0.00013959,2]
[334052345,1722711041336,-500.0,0.00013959,2]
[334052346,1722711041347,-575.31951816,0.00013959,2]
[334052347,1722711041356,-500.0,0.00013959,2]
[334052348,1722711041365,-500.0,0.00013959,2]
[334052349,1722711041375,-500.0,0.00013959,2]
[334052350,1722711041385,-500.0,0.00013959,2]
[334052351,1722711041395,-163.94331802,0.00013959,2]
[334052352,1722711041404,-500.0,0.00013959,2]
[334052353,1722711041414,-312.38937175,0.00013959,2]
[334052354,1722711041424,-585.28913742,0.00013959,2]
[334052355,1722711041433,-500.0,0.00013959,2]
[334052356,1722711041448,-500.0,0.00013959,2]
[334052357,1722711041458,-500.0,0.00013959,2]
[334052358,1722711041477,-500.0,0.00013959,2]
[334052359,1722711041487,-500.0,0.00013959,2]
[334052360,1722711041496,-500.0,0.00013959,2]
[334052361,1722711041506,-500.0,0.00013959,2]
[334052362,1722711041516,-500.0,0.00013959,2]
[334052363,1722711041526,-500.0,0.00013959,2]
[334052364,1722711041536,-500.0,0.00013959,2]
[334052365,1722711041546,-26126.7710017,0.00013962,2]
[334052366,1722711041555,-500.0,0.0001397,2]
[334052367,1722711041565,-894.58,0.00013971,2]
[334052368,1722711041575,-500.0,0.00013971,2]
[334052369,1722711041584,-510.52449572,0.00013972,2]
[334052370,1722711041593,-500.0,0.00013972,2]
[334052371,1722711041602,-500.0,0.00013972,2]
[334052372,1722711041611,-500.0,0.00013972,2]
[334052373,1722711041621,-500.0,0.00013972,2]
[334052374,1722711041630,-500.0,0.00013972,2]
[334052375,1722711041640,-500.0,0.00013972,2]
[334052376,1722711041649,-500.0,0.00013972,2]
[334052377,1722711041659,-394.9759661,0.00013972,2]
[334052378,1722711041668,-500.0,0.00013972,2]
[334052379,1722711041678,-500.0,0.00013972,2]